[Event "Early-Titled-Tuesday-Blitz-June-18-2024"]
[Site "Chess.com"]
[Date "2024.06.18"]
[Round "9"]
[White "Iball95"]
[Black "Journey_to_GrandMaster_YT"]
[Result "1-0"]
[WhiteElo "2828"]
[BlackElo "2640"]
[TimeControl "180+1"]
[EndTime "9:47:04 PDT"]
[Termination "Iball95 won on time"]

1. e4 {[%clk 0:03:00.9]} 1... d6 {[%clk 0:02:59.9]} 2. d4 {[%clk 0:03:00.3]}
2... Nf6 {[%clk 0:02:59.3]} 3. Nc3 {[%clk 0:03:00.9]} 3... e5 {[%clk 0:02:58.4]}
4. dxe5 {[%clk 0:03:01.8]} 4... dxe5 {[%clk 0:02:59.2]} 5. Qxd8+ {[%clk
0:03:02.1]} 5... Kxd8 {[%clk 0:03:00.1]} 6. Bg5 {[%clk 0:03:01.7]} 6... c6
{[%clk 0:03:00.4]} 7. Nf3 {[%clk 0:02:59.3]} 7... Nd7 {[%clk 0:02:59.1]} 8.
O-O-O {[%clk 0:02:57]} 8... Ke8 {[%clk 0:02:58.3]} 9. Bh4 {[%clk 0:02:55.1]}
9... Bc5 {[%clk 0:02:56.1]} 10. Rd2 {[%clk 0:02:35.4]} 10... Bb6 {[%clk
0:02:51.8]} 11. Bc4 {[%clk 0:02:28.3]} 11... Bc7 {[%clk 0:02:49.3]} 12. a4
{[%clk 0:02:28.8]} 12... a6 {[%clk 0:02:46.7]} 13. Re1 {[%clk 0:02:16.3]} 13...
b5 {[%clk 0:02:45.9]} 14. Ba2 {[%clk 0:02:14.5]} 14... h6 {[%clk 0:01:41.5]} 15.
Bg3 {[%clk 0:02:06.5]} 15... Nh5 {[%clk 0:01:36.4]} 16. Red1 {[%clk 0:01:58.8]}
16... Nxg3 {[%clk 0:01:34.4]} 17. hxg3 {[%clk 0:01:59.7]} 17... f6 {[%clk
0:01:19.5]} 18. Nh4 {[%clk 0:01:42.3]} 18... Nf8 {[%clk 0:01:17.7]} 19. Nf5
{[%clk 0:01:42.7]} 19... Bxf5 {[%clk 0:01:13]} 20. exf5 {[%clk 0:01:43.6]} 20...
Ba5 {[%clk 0:00:57.1]} 21. Rd6 {[%clk 0:01:35.7]} 21... Bxc3 {[%clk 0:00:55.6]}
22. bxc3 {[%clk 0:01:35.7]} 22... Rc8 {[%clk 0:00:55]} 23. Be6 {[%clk
0:01:15.1]} 23... Nxe6 {[%clk 0:00:20.4]} 24. Rxe6+ {[%clk 0:01:16]} 24... Kf8
{[%clk 0:00:20.2]} 25. a5 {[%clk 0:01:11.5]} 25... Kg8 {[%clk 0:00:17.2]} 26.
Rd7 {[%clk 0:01:11.5]} 26... Kh7 {[%clk 0:00:17.3]} 27. Rxf6 {[%clk 0:01:11.8]}
27... Rhf8 {[%clk 0:00:16.1]} 28. Rg6 {[%clk 0:01:09.1]} 28... Rxf5 {[%clk
0:00:06.4]} 29. Rgxg7+ {[%clk 0:01:08.9]} 29... Kh8 {[%clk 0:00:07.1]} 30. Rh7+
{[%clk 0:01:09.8]} 30... Kg8 {[%clk 0:00:07.6]} 31. Rdg7+ {[%clk 0:01:10.4]}
31... Kf8 {[%clk 0:00:08.1]} 32. Ra7 {[%clk 0:01:11.3]} 32... Kg8 {[%clk
0:00:08.2]} 33. f3 {[%clk 0:01:11.8]} 33... Rg5 {[%clk 0:00:07.8]} 34. g4 {[%clk
0:01:09.7]} 34... Rg6 {[%clk 0:00:07]} 35. Rhe7 {[%clk 0:01:07.9]} 35... h5
{[%clk 0:00:06]} 36. gxh5 {[%clk 0:01:04.3]} 36... Rxg2 {[%clk 0:00:06.6]} 37.
Rxe5 {[%clk 0:01:04.8]} 37... Rf8 {[%clk 0:00:05.7]} 38. h6 {[%clk 0:01:01.2]}
38... Kh8 {[%clk 0:00:03.5]} 39. Re6 {[%clk 0:00:34.5]} 39... Rxf3 {[%clk
0:00:03.6]} 40. Rxc6 {[%clk 0:00:33.5]} 40... Rff2 {[%clk 0:00:03.2]} 41. Rc8+
{[%clk 0:00:32.9]} 41... Rg8 {[%clk 0:00:03.8]} 42. Rxg8+ {[%clk 0:00:28.5]}
42... Kxg8 {[%clk 0:00:04.7]} 43. Rxa6 {[%clk 0:00:28.6]} 43... Rf4 {[%clk
0:00:04.5]} 44. Kd2 {[%clk 0:00:15.4]} 44... Ra4 {[%clk 0:00:04.1]} 45. Ra7
{[%clk 0:00:14.7]} 45... Kh8 {[%clk 0:00:02.2]} 46. Ke3 {[%clk 0:00:12.7]} 46...
Ra2 {[%clk 0:00:01.6]} 47. Kd4 {[%clk 0:00:12.1]} 47... Rxc2 {[%clk 0:00:01.5]}
48. a6 {[%clk 0:00:12.3]} 1-0

[Event "Early-Titled-Tuesday-Blitz-June-18-2024"]
[Site "Chess.com"]
[Date "2024.06.18"]
[Round "9"]
[White "LangesNasenhaar"]
[Black "Resourchess"]
[Result "0-1"]
[WhiteElo "2468"]
[BlackElo "2385"]
[TimeControl "180+1"]
[EndTime "9:47:04 PDT"]
[Termination "Resourchess won on time"]

1. Nf3 {[%clk 0:03:00.9]} 1... d6 {[%clk 0:02:59.5]} 2. e3 {[%clk 0:03:00.7]}
2... g6 {[%clk 0:02:59.7]} 3. d4 {[%clk 0:03:00.7]} 3... Bg7 {[%clk 0:02:59.7]}
4. b3 {[%clk 0:03:00.4]} 4... e5 {[%clk 0:02:54.9]} 5. Bb2 {[%clk 0:03:00.7]}
5... Nd7 {[%clk 0:02:54.7]} 6. Be2 {[%clk 0:02:59.9]} 6... Ne7 {[%clk
0:02:39.4]} 7. O-O {[%clk 0:02:58.9]} 7... O-O {[%clk 0:02:39.3]} 8. c4 {[%clk
0:02:58.8]} 8... h6 {[%clk 0:02:37.8]} 9. Nc3 {[%clk 0:02:57.1]} 9... Kh7 {[%clk
0:02:29.5]} 10. b4 {[%clk 0:02:56.7]} 10... f5 {[%clk 0:02:27.1]} 11. a4 {[%clk
0:02:54.7]} 11... e4 {[%clk 0:02:26.5]} 12. Nd2 {[%clk 0:02:54.5]} 12... Nf6
{[%clk 0:02:24.2]} 13. d5 {[%clk 0:02:50.5]} 13... g5 {[%clk 0:02:19.8]} 14. Qc2
{[%clk 0:02:44.8]} 14... Ng6 {[%clk 0:02:16.2]} 15. Nb5 {[%clk 0:02:40.7]} 15...
Qe7 {[%clk 0:02:02.2]} 16. Rad1 {[%clk 0:02:34.9]} 16... a6 {[%clk 0:01:44.2]}
17. Nd4 {[%clk 0:02:34.8]} 17... f4 {[%clk 0:01:38.2]} 18. Nxe4 {[%clk
0:02:21.1]} 18... Nxe4 {[%clk 0:01:30.4]} 19. Bd3 {[%clk 0:02:21.4]} 19... Bxd4
{[%clk 0:01:18.1]} 20. Bxe4 {[%clk 0:02:18.2]} 20... Bxb2 {[%clk 0:01:17.9]} 21.
Bxg6+ {[%clk 0:02:12.3]} 21... Kg7 {[%clk 0:01:18]} 22. exf4 {[%clk 0:01:59.3]}
22... Qf6 {[%clk 0:00:59.7]} 23. fxg5 {[%clk 0:01:45.9]} 23... hxg5 {[%clk
0:00:59.7]} 24. Rd3 {[%clk 0:01:24.4]} 24... Be5 {[%clk 0:00:45.2]} 25. Be4
{[%clk 0:01:23.9]} 25... Rh8 {[%clk 0:00:42.3]} 26. g3 {[%clk 0:01:23.1]} 26...
Bg4 {[%clk 0:00:37.9]} 27. Qd2 {[%clk 0:00:42.8]} 27... Raf8 {[%clk 0:00:23.2]}
28. f3 {[%clk 0:00:40.8]} 28... Bh3 {[%clk 0:00:22.7]} 29. Rf2 {[%clk
0:00:41.3]} 29... Rh6 {[%clk 0:00:20.5]} 30. c5 {[%clk 0:00:28.2]} 30... Bf5
{[%clk 0:00:19.5]} 31. Qe3 {[%clk 0:00:23.4]} 31... Bxe4 {[%clk 0:00:17.9]} 32.
Qxe4 {[%clk 0:00:23.9]} 32... Qg6 {[%clk 0:00:15.8]} 33. Qxg6+ {[%clk
0:00:19.5]} 33... Rxg6 {[%clk 0:00:16.7]} 34. c6 {[%clk 0:00:20]} 34... b6
{[%clk 0:00:15.9]} 35. Kg2 {[%clk 0:00:19]} 35... Rh8 {[%clk 0:00:14.3]} 36. Re2
{[%clk 0:00:08.6]} 36... Rgh6 {[%clk 0:00:13.6]} 37. Kg1 {[%clk 0:00:08.4]}
37... Kf6 {[%clk 0:00:11.6]} 38. Rf2 {[%clk 0:00:06.6]} 38... Kf5 {[%clk
0:00:10.6]} 39. Re2 {[%clk 0:00:05.1]} 39... Rh3 {[%clk 0:00:06.1]} 40. Rd1
{[%clk 0:00:03.6]} 40... Bxg3 {[%clk 0:00:04.6]} 41. Rg2 {[%clk 0:00:01]} 41...
Bf4 {[%clk 0:00:03.8]} 42. Kf1 {[%clk 0:00:01]} 42... Rxh2 {[%clk 0:00:03.8]}
43. Rd3 {[%clk 0:00:01.4]} 43... Rh1+ {[%clk 0:00:03.2]} 44. Ke2 {[%clk
0:00:01.4]} 44... Ra1 {[%clk 0:00:03.1]} 0-1

[Event "Early-Titled-Tuesday-Blitz-June-18-2024"]
[Site "Chess.com"]
[Date "2024.06.18"]
[Round "9"]
[White "IlanSchnaider"]
[Black "sansanathalia"]
[Result "1-0"]
[WhiteElo "2800"]
[BlackElo "2453"]
[TimeControl "180+1"]
[EndTime "9:47:09 PDT"]
[Termination "IlanSchnaider won by resignation"]

1. d4 {[%clk 0:03:00.9]} 1... Nf6 {[%clk 0:02:58.1]} 2. Nf3 {[%clk 0:02:59.3]}
2... e6 {[%clk 0:02:57.3]} 3. c4 {[%clk 0:02:59.4]} 3... d5 {[%clk 0:02:56.1]}
4. g3 {[%clk 0:02:59.3]} 4... Be7 {[%clk 0:02:55.8]} 5. Bg2 {[%clk 0:02:59.3]}
5... O-O {[%clk 0:02:56.3]} 6. O-O {[%clk 0:02:59.7]} 6... dxc4 {[%clk
0:02:54.5]} 7. Qc2 {[%clk 0:03:00]} 7... a6 {[%clk 0:02:54.3]} 8. a4 {[%clk
0:02:56.1]} 8... Bd7 {[%clk 0:02:48.8]} 9. Qxc4 {[%clk 0:02:52.3]} 9... Bc6
{[%clk 0:02:44.6]} 10. Bg5 {[%clk 0:02:49.5]} 10... Bd5 {[%clk 0:02:40.3]} 11.
Qc2 {[%clk 0:02:42.1]} 11... Be4 {[%clk 0:02:35.1]} 12. Qc1 {[%clk 0:02:42.6]}
12... Nbd7 {[%clk 0:02:30.6]} 13. Nc3 {[%clk 0:02:38.3]} 13... Bc6 {[%clk
0:02:20.7]} 14. Rd1 {[%clk 0:02:36.7]} 14... Nd5 {[%clk 0:02:19.7]} 15. Bxe7
{[%clk 0:02:24.9]} 15... Qxe7 {[%clk 0:02:14.6]} 16. a5 {[%clk 0:02:25.3]} 16...
Rfd8 {[%clk 0:02:11.3]} 17. Nd2 {[%clk 0:02:23.6]} 17... Nxc3 {[%clk 0:02:07.2]}
18. bxc3 {[%clk 0:02:24.5]} 18... Bxg2 {[%clk 0:02:06.5]} 19. Kxg2 {[%clk
0:02:25.4]} 19... c5 {[%clk 0:02:06.1]} 20. Qb2 {[%clk 0:02:23.3]} 20... cxd4
{[%clk 0:01:55.3]} 21. cxd4 {[%clk 0:02:23.1]} 21... Nf6 {[%clk 0:01:54.9]} 22.
Rab1 {[%clk 0:02:18.2]} 22... Rab8 {[%clk 0:01:42.7]} 23. e3 {[%clk 0:02:17.1]}
23... Rd5 {[%clk 0:01:40.5]} 24. Qb6 {[%clk 0:01:57]} 24... h6 {[%clk
0:01:30.5]} 25. Nc4 {[%clk 0:01:45.9]} 25... Rdd8 {[%clk 0:01:27.1]} 26. Ne5
{[%clk 0:01:41.8]} 26... Nd5 {[%clk 0:01:25]} 27. Qb3 {[%clk 0:01:42.3]} 27...
Qc7 {[%clk 0:01:22]} 28. Rdc1 {[%clk 0:01:20.4]} 28... Qxa5 {[%clk 0:01:14.7]}
29. Rc5 {[%clk 0:01:21]} 29... Qd2 {[%clk 0:00:59.1]} 30. Nf3 {[%clk 0:01:17.8]}
30... Nxe3+ {[%clk 0:00:14]} 31. Qxe3 {[%clk 0:01:17.4]} 31... Qxe3 {[%clk
0:00:13.2]} 32. fxe3 {[%clk 0:01:18.3]} 32... b5 {[%clk 0:00:10.9]} 33. Ne5
{[%clk 0:01:18]} 33... Rb6 {[%clk 0:00:09.4]} 34. Ra1 {[%clk 0:01:13.8]} 34...
Ra8 {[%clk 0:00:07.7]} 35. Ra5 {[%clk 0:01:12]} 35... b4 {[%clk 0:00:07.1]} 36.
Nc4 {[%clk 0:01:12.6]} 36... b3 {[%clk 0:00:04.3]} 37. Nb2 {[%clk 0:01:01.2]}
37... Rab8 {[%clk 0:00:04.3]} 38. Rc3 {[%clk 0:00:59.9]} 38... f6 {[%clk
0:00:03.7]} 39. Kf3 {[%clk 0:01:00]} 39... Rd6 {[%clk 0:00:01.7]} 40. Ke2 {[%clk
0:00:59.4]} 40... e5 {[%clk 0:00:01.8]} 41. dxe5 {[%clk 0:00:59.4]} 41... fxe5
{[%clk 0:00:02.7]} 42. Rxe5 {[%clk 0:00:59.1]} 42... Rbd8 {[%clk 0:00:03.2]} 43.
Rxb3 {[%clk 0:00:59]} 43... Rd2+ {[%clk 0:00:03.5]} 44. Kf3 {[%clk 0:00:59.8]}
44... Rxh2 {[%clk 0:00:03.8]} 45. Rb7 {[%clk 0:00:58.3]} 45... Rf8+ {[%clk
0:00:04.3]} 46. Ke4 {[%clk 0:00:57.7]} 46... Rg2 {[%clk 0:00:04.6]} 47. Nd3
{[%clk 0:00:53.5]} 47... Rxg3 {[%clk 0:00:04.9]} 48. Nf4 {[%clk 0:00:54.2]}
48... Rg4 {[%clk 0:00:04.5]} 49. Ree7 {[%clk 0:00:52]} 49... h5 {[%clk
0:00:01.8]} 50. Kf3 {[%clk 0:00:50.9]} 50... Rg5 {[%clk 0:00:01.7]} 51. Ke2
{[%clk 0:00:49.8]} 51... h4 {[%clk 0:00:02.2]} 52. Ne6 {[%clk 0:00:49.6]} 52...
Rg3 {[%clk 0:00:01.6]} 53. Kd3 {[%clk 0:00:50.3]} 53... h3 {[%clk 0:00:01.8]}
54. Rxg7+ {[%clk 0:00:47.8]} 54... Rxg7 {[%clk 0:00:02.3]} 55. Rxg7+ {[%clk
0:00:48.6]} 55... Kh8 {[%clk 0:00:03.1]} 56. Rg3 {[%clk 0:00:49.5]} 56... Rf6
{[%clk 0:00:02.8]} 57. Rxh3+ {[%clk 0:00:50]} 57... Kg8 {[%clk 0:00:03.5]} 58.
Nd4 {[%clk 0:00:50.7]} 58... Rd6 {[%clk 0:00:03.4]} 59. Rh5 {[%clk 0:00:51.1]}
59... Kf7 {[%clk 0:00:03.7]} 60. Ra5 {[%clk 0:00:50.4]} 60... Kf6 {[%clk
0:00:03.9]} 61. Ke4 {[%clk 0:00:51.1]} 61... Rb6 {[%clk 0:00:03.5]} 62. Kd5
{[%clk 0:00:49.9]} 62... Ke7 {[%clk 0:00:01.9]} 63. e4 {[%clk 0:00:49.2]} 63...
Rh6 {[%clk 0:00:01.8]} 64. Nf5+ {[%clk 0:00:49]} 1-0

[Event "Early-Titled-Tuesday-Blitz-June-18-2024"]
[Site "Chess.com"]
[Date "2024.06.18"]
[Round "9"]
[White "topce"]
[Black "karinachess1"]
[Result "0-1"]
[WhiteElo "2522"]
[BlackElo "2667"]
[TimeControl "180+1"]
[EndTime "9:47:13 PDT"]
[Termination "karinachess1 won by resignation"]

1. c4 {[%clk 0:03:00.9]} 1... e6 {[%clk 0:02:58.5]} 2. Nc3 {[%clk 0:02:53.9]}
2... d5 {[%clk 0:02:57.5]} 3. d4 {[%clk 0:02:52.5]} 3... Nf6 {[%clk 0:02:57.1]}
4. cxd5 {[%clk 0:02:51.2]} 4... exd5 {[%clk 0:02:58]} 5. Bg5 {[%clk 0:02:50.8]}
5... c6 {[%clk 0:02:58.7]} 6. e3 {[%clk 0:02:50.8]} 6... Be7 {[%clk 0:02:59.4]}
7. Bd3 {[%clk 0:02:50.8]} 7... Nbd7 {[%clk 0:03:00.1]} 8. Nge2 {[%clk
0:02:51.1]} 8... h6 {[%clk 0:03:00.8]} 9. Bh4 {[%clk 0:02:50.2]} 9... Nh5 {[%clk
0:03:01.4]} 10. Bxe7 {[%clk 0:02:47.6]} 10... Qxe7 {[%clk 0:03:02.3]} 11. Qc2
{[%clk 0:02:45.1]} 11... Nb6 {[%clk 0:03:01.3]} 12. O-O-O {[%clk 0:02:42.5]}
12... Bd7 {[%clk 0:03:01.7]} 13. Kb1 {[%clk 0:02:40.1]} 13... O-O-O {[%clk
0:03:01.8]} 14. Rc1 {[%clk 0:02:39.6]} 14... Kb8 {[%clk 0:03:02.1]} 15. h3
{[%clk 0:02:33.2]} 15... Nf6 {[%clk 0:02:52.1]} 16. Qb3 {[%clk 0:02:26.5]} 16...
Rhe8 {[%clk 0:02:39.7]} 17. a4 {[%clk 0:02:21.5]} 17... Nc8 {[%clk 0:02:30]} 18.
a5 {[%clk 0:02:14.9]} 18... Nd6 {[%clk 0:02:26.9]} 19. Na4 {[%clk 0:02:13.7]}
19... Nfe4 {[%clk 0:02:23.3]} 20. Bxe4 {[%clk 0:01:57]} 20... Nxe4 {[%clk
0:02:21.9]} 21. Rc2 {[%clk 0:01:54]} 21... Nxf2 {[%clk 0:02:04.2]} 22. Rf1
{[%clk 0:01:52.1]} 22... Ne4 {[%clk 0:01:57.4]} 23. Ka1 {[%clk 0:01:48.3]} 23...
Ka8 {[%clk 0:01:51.7]} 24. Nb6+ {[%clk 0:01:38.3]} 24... Kb8 {[%clk 0:01:47.3]}
25. Na4 {[%clk 0:01:37.3]} 25... Nd6 {[%clk 0:01:38.5]} 26. Rc3 {[%clk
0:01:26.4]} 26... Nc4 {[%clk 0:01:37.7]} 27. Nc5 {[%clk 0:01:12.3]} 27... Bc8
{[%clk 0:01:37.7]} 28. Rd1 {[%clk 0:01:03.7]} 28... Ka8 {[%clk 0:01:08.8]} 29.
Rdd3 {[%clk 0:00:50.5]} 29... Qf6 {[%clk 0:00:56.8]} 30. Nf4 {[%clk 0:00:44.4]}
30... g5 {[%clk 0:00:56.2]} 31. Nh5 {[%clk 0:00:36.7]} 31... Qf1+ {[%clk
0:00:56.1]} 32. Ka2 {[%clk 0:00:36.3]} 32... Qxg2 {[%clk 0:00:35.7]} 33. Rxc4
{[%clk 0:00:35.6]} 33... dxc4 {[%clk 0:00:34.9]} 34. Qxc4 {[%clk 0:00:36.5]}
34... Qd5 {[%clk 0:00:35]} 35. Qxd5 {[%clk 0:00:34.4]} 35... cxd5 {[%clk
0:00:35.3]} 36. Nf6 {[%clk 0:00:34.1]} 36... Re7 {[%clk 0:00:35.8]} 37. Rc3
{[%clk 0:00:25.1]} 37... Bxh3 {[%clk 0:00:34.5]} 38. e4 {[%clk 0:00:24.6]} 38...
Be6 {[%clk 0:00:27.9]} 39. exd5 {[%clk 0:00:15.1]} 39... Bxd5+ {[%clk
0:00:27.9]} 40. Nxd5 {[%clk 0:00:15.6]} 40... Rxd5 {[%clk 0:00:24.3]} 41. b4
{[%clk 0:00:14.6]} 41... Rd8 {[%clk 0:00:20.1]} 42. b5 {[%clk 0:00:12.4]} 42...
g4 {[%clk 0:00:19.9]} 43. a6 {[%clk 0:00:07.8]} 43... bxa6 {[%clk 0:00:19.3]}
44. bxa6 {[%clk 0:00:07.9]} 44... Rg8 {[%clk 0:00:17.9]} 45. Na4 {[%clk
0:00:05.8]} 45... g3 {[%clk 0:00:16.6]} 46. Rc1 {[%clk 0:00:04.1]} 46... g2
{[%clk 0:00:16.9]} 47. Rg1 {[%clk 0:00:04.6]} 47... h5 {[%clk 0:00:16.7]} 48.
Nc5 {[%clk 0:00:05]} 48... h4 {[%clk 0:00:16.6]} 49. Nd3 {[%clk 0:00:05.9]}
49... h3 {[%clk 0:00:16.9]} 50. Nf4 {[%clk 0:00:06.3]} 50... h2 {[%clk
0:00:16.5]} 51. Rxg2 {[%clk 0:00:04.6]} 51... Rxg2+ {[%clk 0:00:16.2]} 52. Nxg2
{[%clk 0:00:04.3]} 52... h1=Q {[%clk 0:00:16.9]} 53. Ne3 {[%clk 0:00:04]} 53...
Rxe3 {[%clk 0:00:16]} 54. Kb2 {[%clk 0:00:04]} 54... Qg2+ {[%clk 0:00:16.5]} 0-1

[Event "Early-Titled-Tuesday-Blitz-June-18-2024"]
[Site "Chess.com"]
[Date "2024.06.18"]
[Round "9"]
[White "Rodalquilar"]
[Black "Anton_Demchenko"]
[Result "1-0"]
[WhiteElo "2832"]
[BlackElo "2966"]
[TimeControl "180+1"]
[EndTime "9:47:16 PDT"]
[Termination "Rodalquilar won on time"]

1. d4 {[%clk 0:03:00.9]} 1... Nf6 {[%clk 0:02:55.3]} 2. Nf3 {[%clk 0:03:01]}
2... d6 {[%clk 0:02:54.5]} 3. Nc3 {[%clk 0:02:59.6]} 3... Bf5 {[%clk 0:02:53.8]}
4. e4 {[%clk 0:02:59]} 4... Nxe4 {[%clk 0:02:52.1]} 5. Qd3 {[%clk 0:02:59]} 5...
Ng3 {[%clk 0:02:18.9]} 6. Qb5+ {[%clk 0:02:55.2]} 6... c6 {[%clk 0:02:18.8]} 7.
Qxb7 {[%clk 0:02:55]} 7... Nxh1 {[%clk 0:02:16.1]} 8. Qxa8 {[%clk 0:02:53.2]}
8... g6 {[%clk 0:02:06.5]} 9. Qxa7 {[%clk 0:02:44.1]} 9... Bg7 {[%clk
0:02:02.7]} 10. Be3 {[%clk 0:02:43.8]} 10... O-O {[%clk 0:01:58.9]} 11. O-O-O
{[%clk 0:02:38.4]} 11... Nd7 {[%clk 0:01:34.1]} 12. Be2 {[%clk 0:02:35.4]} 12...
Nxf2 {[%clk 0:01:32]} 13. Bxf2 {[%clk 0:02:35.8]} 13... Nf6 {[%clk 0:01:32.8]}
14. h3 {[%clk 0:02:29.7]} 14... h5 {[%clk 0:01:24.1]} 15. Bd3 {[%clk 0:02:27.1]}
15... Bxd3 {[%clk 0:01:13.7]} 16. Rxd3 {[%clk 0:02:28]} 16... Re8 {[%clk
0:01:01.8]} 17. Kb1 {[%clk 0:02:27.4]} 17... Qc8 {[%clk 0:01:01.4]} 18. Re3
{[%clk 0:02:19.2]} 18... Nd7 {[%clk 0:00:52.3]} 19. Re1 {[%clk 0:02:18.4]} 19...
c5 {[%clk 0:00:49.1]} 20. Nd5 {[%clk 0:01:59.6]} 20... e6 {[%clk 0:00:45.7]} 21.
Nb6 {[%clk 0:01:59.7]} 21... Nxb6 {[%clk 0:00:45.2]} 22. Qxb6 {[%clk 0:02:00.6]}
22... Rd8 {[%clk 0:00:30.3]} 23. dxc5 {[%clk 0:01:39.8]} 23... dxc5 {[%clk
0:00:29.5]} 24. Bxc5 {[%clk 0:01:40]} 24... Rd5 {[%clk 0:00:19.3]} 25. Bd4
{[%clk 0:00:47.7]} 25... Bxd4 {[%clk 0:00:16.5]} 26. Nxd4 {[%clk 0:00:46.4]}
26... Qc4 {[%clk 0:00:17.4]} 27. Nb3 {[%clk 0:00:33.1]} 27... Kg7 {[%clk
0:00:11.2]} 28. Qf2 {[%clk 0:00:32.3]} 28... Kg8 {[%clk 0:00:07.3]} 29. a3
{[%clk 0:00:30.9]} 29... h4 {[%clk 0:00:05.4]} 30. Qe2 {[%clk 0:00:30]} 30...
Qa4 {[%clk 0:00:04.5]} 31. Qe4 {[%clk 0:00:29.6]} 31... Rd1+ {[%clk 0:00:01.4]}
32. Ka2 {[%clk 0:00:30.1]} 32... Qxe4 {[%clk 0:00:02.2]} 33. Rxe4 {[%clk
0:00:29.8]} 33... g5 {[%clk 0:00:02.8]} 34. a4 {[%clk 0:00:29.2]} 34... Rg1
{[%clk 0:00:02.6]} 35. a5 {[%clk 0:00:28.5]} 35... Rxg2 {[%clk 0:00:01.9]} 36.
a6 {[%clk 0:00:29.1]} 36... Rxc2 {[%clk 0:00:01]} 37. a7 {[%clk 0:00:29.2]}
37... Rc8 {[%clk 0:00:01.8]} 38. Rb4 {[%clk 0:00:29.3]} 38... Kg7 {[%clk
0:00:01.7]} 39. Rb8 {[%clk 0:00:29.4]} 39... Rc6 {[%clk 0:00:01.5]} 40. a8=Q
{[%clk 0:00:29.2]} 40... Rd6 {[%clk 0:00:02.1]} 41. Rg8+ {[%clk 0:00:28.4]}
41... Kf6 {[%clk 0:00:02.8]} 42. Qa5 {[%clk 0:00:27.9]} 42... Rd5 {[%clk
0:00:03.1]} 43. Qc3+ {[%clk 0:00:27.9]} 43... Kf5 {[%clk 0:00:02.7]} 44. Nd4+
{[%clk 0:00:28.2]} 44... Kf4 {[%clk 0:00:03.1]} 45. Ne2+ {[%clk 0:00:26.3]}
45... Ke4 {[%clk 0:00:03]} 46. Qc4+ {[%clk 0:00:25.2]} 46... Ke3 {[%clk
0:00:03.1]} 47. Nc3 {[%clk 0:00:25.4]} 47... Rd4 {[%clk 0:00:02.8]} 48. Qe2+
{[%clk 0:00:25]} 48... Kf4 {[%clk 0:00:03.5]} 49. Qf2+ {[%clk 0:00:25]} 49...
Ke5 {[%clk 0:00:03.4]} 50. Rxg5+ {[%clk 0:00:25.2]} 50... f5 {[%clk 0:00:04]}
51. Qe3+ {[%clk 0:00:25.4]} 51... Kf6 {[%clk 0:00:02.4]} 52. Qxd4+ {[%clk
0:00:24.3]} 52... Kxg5 {[%clk 0:00:02.8]} 53. Ne2 {[%clk 0:00:24.6]} 53... e5
{[%clk 0:00:02.5]} 54. Qxe5 {[%clk 0:00:24.5]} 54... Kh5 {[%clk 0:00:02.8]} 55.
Qxf5+ {[%clk 0:00:24.8]} 55... Kh6 {[%clk 0:00:03.1]} 56. Qg4 {[%clk 0:00:25.2]}
56... Kh7 {[%clk 0:00:03.4]} 57. Qg5 {[%clk 0:00:25.6]} 1-0

[Event "Early-Titled-Tuesday-Blitz-June-18-2024"]
[Site "Chess.com"]
[Date "2024.06.18"]
[Round "9"]
[White "DeArron_Fox"]
[Black "rockstar0902"]
[Result "0-1"]
[WhiteElo "2470"]
[BlackElo "2612"]
[TimeControl "180+1"]
[EndTime "9:47:17 PDT"]
[Termination "rockstar0902 won on time"]

1. d4 {[%clk 0:02:56.5]} 1... d5 {[%clk 0:02:59.3]} 2. c4 {[%clk 0:02:56.9]}
2... c6 {[%clk 0:02:57.2]} 3. Nc3 {[%clk 0:02:56.6]} 3... Nf6 {[%clk 0:02:56.6]}
4. e3 {[%clk 0:02:56.3]} 4... e6 {[%clk 0:02:56.4]} 5. Nf3 {[%clk 0:02:56.4]}
5... Nbd7 {[%clk 0:02:56.6]} 6. Qc2 {[%clk 0:02:56.1]} 6... b6 {[%clk
0:02:56.6]} 7. Bd3 {[%clk 0:02:53.2]} 7... Bb7 {[%clk 0:02:56.2]} 8. e4 {[%clk
0:02:44.8]} 8... dxe4 {[%clk 0:02:49.1]} 9. Nxe4 {[%clk 0:02:45.7]} 9... Nxe4
{[%clk 0:02:49.7]} 10. Bxe4 {[%clk 0:02:46.6]} 10... Bb4+ {[%clk 0:02:50]} 11.
Bd2 {[%clk 0:02:44.6]} 11... Bxd2+ {[%clk 0:02:50.1]} 12. Qxd2 {[%clk
0:02:44.3]} 12... Nf6 {[%clk 0:02:50.2]} 13. Bc2 {[%clk 0:02:43.3]} 13... O-O
{[%clk 0:02:37.8]} 14. O-O {[%clk 0:02:27.1]} 14... c5 {[%clk 0:02:36.4]} 15.
dxc5 {[%clk 0:02:26]} 15... Bxf3 {[%clk 0:02:19.3]} 16. Qxd8 {[%clk 0:02:25.3]}
16... Raxd8 {[%clk 0:02:08.7]} 17. gxf3 {[%clk 0:02:26.2]} 17... Rd2 {[%clk
0:02:08.1]} 18. Rac1 {[%clk 0:02:25.7]} 18... bxc5 {[%clk 0:02:07.8]} 19. Rfd1
{[%clk 0:02:25.6]} 19... Rfd8 {[%clk 0:02:07.8]} 20. Rxd2 {[%clk 0:02:24.8]}
20... Rxd2 {[%clk 0:02:08.7]} 21. Kf1 {[%clk 0:02:23.8]} 21... Kf8 {[%clk
0:02:07.4]} 22. Ke1 {[%clk 0:02:23.7]} 22... Rd4 {[%clk 0:02:07.8]} 23. Ba4
{[%clk 0:02:09.1]} 23... Rh4 {[%clk 0:02:04.1]} 24. b4 {[%clk 0:01:40.9]} 24...
cxb4 {[%clk 0:01:52.3]} 25. c5 {[%clk 0:01:40.7]} 25... Nd5 {[%clk 0:01:52.5]}
26. c6 {[%clk 0:01:37.8]} 26... Nc3 {[%clk 0:01:48]} 27. Bb3 {[%clk 0:00:29.9]}
27... Ke7 {[%clk 0:01:45.6]} 28. a3 {[%clk 0:00:20.9]} 28... a5 {[%clk
0:01:44.5]} 29. axb4 {[%clk 0:00:20.8]} 29... axb4 {[%clk 0:01:45.4]} 30. Ra1
{[%clk 0:00:13.6]} 30... Kd6 {[%clk 0:01:12.6]} 31. Ra7 {[%clk 0:00:05.9]} 31...
Rf4 {[%clk 0:01:11.9]} 32. c7 {[%clk 0:00:03.7]} 32... Kd7 {[%clk 0:01:11.8]}
33. Bc2 {[%clk 0:00:02.3]} 33... Rxf3 {[%clk 0:01:07.7]} 34. Kd2 {[%clk
0:00:01.3]} 34... Rxf2+ {[%clk 0:01:05.5]} 35. Kc1 {[%clk 0:00:02]} 35... Rf3
{[%clk 0:00:49.4]} 36. Kd2 {[%clk 0:00:01.4]} 36... Kc8 {[%clk 0:00:48.8]} 37.
Bd3 {[%clk 0:00:01.3]} 37... Rxd3+ {[%clk 0:00:46]} 38. Kxd3 {[%clk 0:00:02.2]}
38... Nd5 {[%clk 0:00:46]} 39. Kc4 {[%clk 0:00:02.2]} 39... g5 {[%clk
0:00:41.7]} 40. Ra8+ {[%clk 0:00:01.8]} 40... Kxc7 {[%clk 0:00:40.7]} 41. Ra7+
{[%clk 0:00:02.7]} 41... Kd6 {[%clk 0:00:40.5]} 42. Rxf7 {[%clk 0:00:03.6]}
42... h5 {[%clk 0:00:39.8]} 43. Rg7 {[%clk 0:00:02.2]} 43... g4 {[%clk
0:00:36.8]} 44. Rg5 {[%clk 0:00:02.7]} 44... Nf4 {[%clk 0:00:29.8]} 45. Kxb4
{[%clk 0:00:03]} 45... e5 {[%clk 0:00:29.8]} 46. Kc4 {[%clk 0:00:02.9]} 46...
Ke6 {[%clk 0:00:30.4]} 47. Rg8 {[%clk 0:00:02.5]} 47... Kf5 {[%clk 0:00:29.9]}
48. Kc3 {[%clk 0:00:01.5]} 48... Ke4 {[%clk 0:00:29.9]} 49. Kd2 {[%clk
0:00:01.8]} 49... Kf3 {[%clk 0:00:30.2]} 50. Re8 {[%clk 0:00:02]} 50... e4
{[%clk 0:00:30.4]} 51. Rf8 {[%clk 0:00:02]} 51... h4 {[%clk 0:00:30.2]} 52. Rh8
{[%clk 0:00:01.3]} 52... g3 {[%clk 0:00:28.9]} 53. hxg3 {[%clk 0:00:02.2]} 53...
hxg3 {[%clk 0:00:29.7]} 54. Ke1 {[%clk 0:00:03.1]} 54... g2 {[%clk 0:00:29.6]}
55. Rg8 {[%clk 0:00:03.4]} 55... Nh3 {[%clk 0:00:27.3]} 56. Rf8+ {[%clk
0:00:03.3]} 56... Ke3 {[%clk 0:00:27.6]} 0-1